bitfinex-derivatives/quotes_BTCF0:USTF0_20210705
["timestamp","ask_amount","ask_price","bid_price","bid_amount"]
[1625466957534,0.82131005,34258.0,34256.0,0.51026551]
[1625466957634,0.81731005,34258.0,34256.0,0.58236781]
[1625466957734,0.75831005,34258.0,34256.0,0.52336781]
[1625466957837,0.75831005,34258.0,34257.0,0.01310164]
[1625466958087,0.75831005,34258.0,34257.0,0.07210164]
[1625466958297,4.3734,34277.0,34257.0,4.9244974]
[1625466958388,1.0393,34283.0,34258.0,0.5]
[1625466958488,1.0393,34283.0,34259.0,0.116]
[1625466958588,1.0393,34283.0,34259.0,0.175]
[1625466958687,1.0393,34283.0,34259.0,0.17945514]
[1625466958838,4.3731,34282.0,34260.0,0.0102382]
[1625466958938,4.4321,34282.0,34260.0,0.13269285]
[1625466959041,0.059,34282.0,34264.0,1.77736363]
[1625466959138,0.9803,34283.0,34265.0,0.057]
[1625466959239,0.9803,34283.0,34265.0,0.175]
[1625466959439,1.0393,34283.0,34281.0,0.1]
[1625466959540,1.0393,34283.0,34281.0,0.34581]
[1625466959641,1.0393,34283.0,34281.0,0.40481]
[1625466959840,1.0393,34283.0,34281.0,0.30481]
[1625466959940,0.059,34283.0,34281.0,0.30481]
[1625466960316,0.059,34283.0,34282.0,0.72172632]
[1625466960396,0.059,34283.0,34282.0,0.78072632]
[1625466965451,4.6621,34283.0,34282.0,0.78072632]
[1625466965553,4.99775,34283.0,34282.0,0.78072632]
[1625466965907,0.39465,34283.0,34282.0,0.78072632]
[1625466967058,0.059,34283.0,34282.0,0.78072632]
[1625466968762,4.9436,34283.0,34282.0,0.78072632]
[1625466968861,0.059,34283.0,34282.0,0.78072632]
[1625466972217,0.059,34283.0,34282.0,0.72172632]
[1625466972317,0.059,34283.0,34282.0,0.24057544]
[1625466972466,0.35857544,34283.0,34282.0,0.24057544]
[1625466972566,0.29957544,34283.0,34282.0,0.24057544]
[1625466985599,0.313883,34283.0,34282.0,0.24057544]
[1625466987904,0.313883,34283.0,34282.0,0.24502777]
[1625466988358,0.557413,34283.0,34282.0,0.24502777]
[1625466988461,0.557413,34283.0,34282.0,0.24057544]
[1625466988659,0.557413,34283.0,34282.0,0.24502787]
[1625466988959,0.557413,34283.0,34282.0,0.24057544]
[1625466990162,0.313883,34283.0,34282.0,0.24057544]
[1625466990262,0.313883,34283.0,34282.0,0.24502786]
[1625466992516,0.07330756,34283.0,34282.0,0.24502786]
[1625466992716,0.07330756,34283.0,34282.0,0.4856033]
[1625466997281,0.07330756,34283.0,34282.0,0.8051733]
[1625466998131,5.22120756,34283.0,34282.0,0.8051733]
[1625466998481,0.07330756,34283.0,34282.0,0.8051733]
[1625466998580,0.07330756,34283.0,34282.0,0.8641733]
[1625466998682,0.01430756,34283.0,34282.0,0.8641733]
[1625466999185,0.01430756,34283.0,34282.0,4.3999733]
[1625466999586,0.01430756,34283.0,34282.0,0.8641733]
[1625467000684,0.9522,34284.0,34282.0,0.8641733]
[1625467000784,1.0112,34284.0,34282.0,0.8641733]
[1625467000884,1.0112,34284.0,34283.0,0.24057544]
[1625467000983,1.0112,34284.0,34283.0,0.30403401]
[1625467001234,1.02549059,34284.0,34283.0,0.30403401]
[1625467001439,0.96649059,34284.0,34283.0,0.30403401]
[1625467001543,0.9522,34284.0,34283.0,0.30403401]
[1625467001650,0.9522,34284.0,34283.0,4.41753401]
[1625467002539,0.9522,34284.0,34283.0,0.30403401]
[1625467004991,0.9522,34284.0,34283.0,0.40403401]
[1625467009659,0.9522,34284.0,34283.0,1.42900941]
[1625467010157,0.9522,34284.0,34283.0,2.62634438]
[1625467010711,0.9522,34284.0,34283.0,1.42900941]
[1625467012315,0.9522,34284.0,34283.0,3.99876169]
[1625467012616,0.9522,34284.0,34283.0,2.62822714]
[1625467013168,0.9522,34284.0,34283.0,3.99875181]
[1625467014870,0.9522,34284.0,34283.0,8.43575181]
[1625467015574,0.9522,34284.0,34283.0,9.98077613]
[1625467015671,0.9522,34284.0,34283.0,5.75573613]
[1625467015971,0.9522,34284.0,34283.0,5.81473613]
[1625467016071,0.9522,34284.0,34283.0,6.50141183]
[1625467017174,0.9522,34284.0,34283.0,6.44241183]
[1625467017274,0.9522,34284.0,34283.0,6.50141183]
[1625467018779,0.9522,34284.0,34283.0,10.42101183]
[1625467019230,0.9522,34284.0,34283.0,6.50141183]
[1625467019382,0.9522,34284.0,34283.0,6.44241183]
[1625467020634,0.9522,34284.0,34283.0,6.50141183]
[1625467021131,0.9522,34284.0,34283.0,6.44241183]
[1625467022087,0.9522,34284.0,34283.0,11.18481183]
[1625467022736,0.9522,34284.0,34283.0,11.24381183]
[1625467025795,0.9522,34284.0,34283.0,6.50141183]
[1625467026746,0.8932,34284.0,34283.0,6.50141183]
[1625467027046,0.8932,34284.0,34283.0,6.44241183]
[1625467028902,0.8932,34284.0,34283.0,6.38341183]
[1625467029552,0.8932,34284.0,34283.0,6.44241183]
[1625467029753,0.8932,34284.0,34283.0,6.38341183]
[1625467029854,0.8932,34284.0,34283.0,6.44241183]
[1625467030054,0.8932,34284.0,34283.0,6.38341183]
[1625467030154,0.8932,34284.0,34283.0,6.44241183]
[1625467030255,0.8932,34284.0,34283.0,6.38341183]
[1625467036228,0.8932,34284.0,34283.0,11.35891183]
[1625467037782,0.8932,34284.0,34283.0,6.38341183]
[1625467037879,0.8932,34284.0,34283.0,6.23045183]
[1625467037979,0.8932,34284.0,34283.0,6.17145183]
[1625467038530,4.8327,34284.0,34283.0,6.17145183]
[1625467039281,0.8932,34284.0,34283.0,6.17145183]
[1625467039733,0.8932,34284.0,34283.0,4.62642751]
[1625467043095,0.8932,34284.0,34283.0,4.68542751]
[1625467047656,0.8932,34284.0,34283.0,5.20137188]
[1625467049361,0.8932,34284.0,34283.0,6.74961051]
[1625467055881,0.8932,34284.0,34283.0,16.74961051]
[1625467059240,1.15084862,34284.0,34283.0,16.74961051]
[1625467059790,0.97914005,34284.0,34283.0,16.74961051]
[1625467060141,0.8932,34284.0,34283.0,16.74961051]
[1625467060492,0.8932,34284.0,34283.0,17.01889051]
[1625467061395,0.8932,34284.0,34283.0,18.74410288]
[1625467063401,0.8932,34284.0,34283.0,18.75438436]
[1625467063650,0.8932,34284.0,34283.0,18.74410288]
[1625467067008,0.8932,34284.0,34283.0,17.01889051]
[1625467067109,0.8932,34284.0,34283.0,16.74961051]
[1625467068261,0.8932,34284.0,34283.0,18.47539527]
[1625467068717,0.8932,34284.0,34283.0,16.74961051]
[1625467069566,0.8932,34284.0,34283.0,18.47541434]
[1625467069967,1.15107358,34284.0,34283.0,16.74961051]
[1625467070267,5.07437358,34284.0,34283.0,16.74961051]
[1625467070467,4.98835849,34284.0,34283.0,16.74961051]
[1625467071020,5.3315816,34284.0,34283.0,16.74961051]
[1625467071121,1.4082816,34284.0,34283.0,16.74961051]
[1625467071624,6.3233816,34284.0,34283.0,16.74961051]
[1625467072325,1.4082816,34284.0,34283.0,16.74961051]
[1625467072779,1.06507696,34284.0,34283.0,16.74961051]
[1625467073180,1.15112454,34284.0,34283.0,16.74961051]
[1625467073532,0.97924758,34284.0,34283.0,16.74961051]
[1625467077891,1.15176054,34284.0,34283.0,16.74961051]
[1625467078941,0.97924758,34284.0,34283.0,16.74961051]
[1625467079041,0.8932,34284.0,34283.0,18.4753145]
[1625467080246,0.8932,34284.0,34283.0,18.48559624]
[1625467080901,0.8932,34284.0,34283.0,18.4753145]
[1625467085153,0.8932,34284.0,34283.0,22.2913145]
[1625467085252,0.8932,34284.0,34283.0,18.4753145]
[1625467087009,0.8932,34284.0,34283.0,18.48559793]
[1625467088662,0.8932,34284.0,34283.0,18.4753145]
[1625467088864,0.8932,34284.0,34283.0,18.48559999]
[1625467089715,0.8932,34284.0,34283.0,18.4753145]
[1625467090516,0.97933435,34284.0,34283.0,18.4753145]
[1625467090616,0.97933435,34284.0,34283.0,16.74961051]
[1625467090816,5.61723435,34284.0,34283.0,16.74961051]
[1625467091322,6.73446258,34284.0,34283.0,16.74961051]
[1625467091971,7.76532671,34284.0,34283.0,16.74961051]
[1625467092573,3.12742671,34284.0,34283.0,16.74961051]
[1625467093124,3.18642671,34284.0,34283.0,16.74961051]
[1625467093223,3.20073455,34284.0,34283.0,16.74961051]
[1625467093426,4.4025777,34284.0,34283.0,15.20137188]
[1625467094279,9.4680777,34284.0,34283.0,15.20137188]
[1625467095433,4.4025777,34284.0,34283.0,15.20137188]
[1625467095584,4.38826986,34284.0,34283.0,15.20137188]
[1625467099900,9.39796986,34284.0,34283.0,15.20137188]
[1625467100001,9.39796986,34284.0,34283.0,15.14237188]
[1625467103108,4.38826986,34284.0,34283.0,15.14237188]
[1625467103709,7.98406986,34284.0,34283.0,15.14237188]
[1625467105564,7.98406986,34284.0,34283.0,15.13791331]
[1625467105715,7.98406986,34284.0,34283.0,13.76738864]
[1625467106771,4.38826986,34284.0,34283.0,13.76738864]
[1625467106869,4.38826986,34284.0,34283.0,13.7718395]
[1625467107069,4.38826986,34284.0,34283.0,15.15110162]
[1625467107568,2.15556258,34284.0,34283.0,15.15110162]
[1625467108972,1.46795137,34284.0,34283.0,16.70263144]
[1625467110074,1.78754137,34284.0,34283.0,16.70263144]
[1625467110174,6.80784137,34284.0,34283.0,16.70263144]
[1625467110675,6.80784137,34284.0,34283.0,15.15110162]
[1625467111078,1.78754137,34284.0,34283.0,15.15110162]
[1625467111580,2.13022706,34284.0,34283.0,16.70255822]
[1625467112086,1.78754137,34284.0,34283.0,15.15110162]
[1625467112483,2.47250018,34284.0,34283.0,15.15110162]
[1625467112584,6.66090018,34284.0,34283.0,15.15110162]
[1625467112984,2.47250018,34284.0,34283.0,15.15110162]
[1625467113536,7.25350018,34284.0,34283.0,15.15110162]
[1625467113636,2.47250018,34284.0,34283.0,15.15110162]
[1625467113838,1.78754137,34284.0,34283.0,16.70259519]
[1625467113938,1.46795137,34284.0,34283.0,16.70259519]
[1625467114237,1.46795137,34284.0,34283.0,15.15110162]
[1625467116743,1.72258137,34284.0,34283.0,15.15110162]
[1625467116949,2.40864023,34284.0,34283.0,15.15110162]
[1625467118597,1.55013408,34284.0,34283.0,16.70256576]
[1625467118697,1.29550408,34284.0,34283.0,16.70256576]
[1625467119049,1.46724629,34284.0,34283.0,16.70256576]
[1625467120756,1.55320432,34284.0,34283.0,16.70256576]
[1625467121511,1.83075432,34284.0,34283.0,16.70256576]
[1625467121759,1.74479629,34284.0,34283.0,16.70256576]
[1625467124613,1.46724629,34284.0,34283.0,16.70256576]
[1625467124713,1.20989414,34284.0,34283.0,16.70256576]
[1625467129226,1.03815193,34284.0,34283.0,16.70256576]
[1625467129729,1.03815193,34284.0,34283.0,17.00487576]
[1625467129828,0.97915193,34284.0,34283.0,17.06387576]
[1625467130277,0.97915193,34284.0,34283.0,20.86977576]
[1625467130478,0.8932,34284.0,34283.0,22.59383757]
[1625467130577,0.8932,34284.0,34283.0,22.60410902]
[1625467134688,0.8932,34284.0,34283.0,18.79820902]
[1625467135239,0.8932,34284.0,34283.0,23.75860902]
[1625467135338,0.8932,34284.0,34283.0,18.79820902]
[1625467137846,0.8932,34284.0,34283.0,23.41800902]
[1625467141455,0.8932,34284.0,34283.0,23.47700902]
[1625467142158,0.8932,34284.0,34283.0,23.97700902]
[1625467142258,0.68519305,34284.0,34283.0,23.97700902]
[1625467142359,0.41069305,34284.0,34283.0,23.97700902]
[1625467142458,0.41069305,34284.0,34283.0,23.92664807]
[1625467142558,0.35199305,34284.0,34283.0,23.98564807]
[1625467142659,0.004,34291.0,34283.0,23.98564807]
[1625467142759,0.46157505,34294.0,34290.0,0.72172632]
[1625467142859,0.46157505,34294.0,34291.0,0.5]
[1625467142959,1.03386132,34295.0,34291.0,0.559]
[1625467143058,1.03386132,34295.0,34292.0,0.01020587]
[1625467143159,1.03386132,34295.0,34292.0,0.12820587]
[1625467143259,0.53326132,34295.0,34292.0,0.63265295]
[1625467143359,0.03266132,34295.0,34293.0,0.01020519]
[1625467143462,0.03266132,34295.0,34293.0,0.07365193]
[1625467143560,0.2585737,34301.0,34293.0,0.13265193]
[1625467143660,0.2585737,34301.0,34294.0,0.5]
[1625467143759,0.2585737,34301.0,34294.0,0.62244654]
[1625467143860,0.2585737,34301.0,34300.0,4.5797]
[1625467143963,0.25854234,34306.0,34300.0,4.87341]
[1625467144061,0.25854234,34306.0,34300.0,4.93241]
[1625467144261,0.25854234,34306.0,34301.0,0.00444634]
[1625467144360,0.25854234,34306.0,34301.0,0.12244634]
[1625467144760,0.25854234,34306.0,34305.0,0.96230176]
[1625467144860,0.25854234,34306.0,34305.0,1.02130176]
[1625467144963,0.17199125,34312.0,34305.0,7.34257547]
[1625467145062,0.17199125,34312.0,34305.0,7.40602148]
[1625467145362,0.17199125,34312.0,34306.0,0.00444597]
[1625467145463,1.10077795,34315.0,34311.0,4.77854793]
[1625467145561,1.10077795,34315.0,34311.0,9.38581793]
[1625467145761,1.15977795,34315.0,34311.0,9.38581793]
[1625467146063,1.21877795,34315.0,34311.0,9.38581793]
[1625467146164,1.21877795,34315.0,34314.0,3.41310523]
[1625467146866,1.0468,34315.0,34314.0,2.94024472]
[1625467146967,1.0468,34315.0,34314.0,1.91631315]
[1625467147520,1.0468,34315.0,34314.0,2.93868775]
[1625467148820,1.0468,34315.0,34314.0,1.2336921]
[1625467149720,2.2466263,34315.0,34314.0,0.72172632]
[1625467151075,1.21820796,34315.0,34314.0,0.72172632]
[1625467152178,1.0468,34315.0,34314.0,0.72172632]
[1625467153281,2.24508695,34315.0,34314.0,0.72172632]
[1625467154232,3.27184871,34315.0,34314.0,0.72172632]
[1625467154938,3.51242415,34315.0,34314.0,0.72172632]
[1625467155143,2.48566239,34315.0,34314.0,0.72172632]
[1625467155639,1.45863735,34315.0,34314.0,0.72172632]
[1625467156954,1.45863735,34315.0,34314.0,0.48115088]
[1625467157192,3.50918995,34315.0,34314.0,0.48115088]
[1625467157794,4.70529997,34315.0,34314.0,0.48115088]
[1625467159796,4.70529997,34315.0,34311.0,0.004]
[1625467159895,3.6882,34313.0,34311.0,0.004]
[1625467159995,3.8062,34313.0,34311.0,0.004]
[1625467160346,1.19659348,34312.0,34311.0,0.004]
[1625467160445,1.53344348,34312.0,34311.0,0.004]
[1625467160848,2.55866577,34312.0,34311.0,0.004]
[1625467161046,2.79924121,34312.0,34311.0,0.004]
[1625467161247,2.79724121,34312.0,34311.0,0.004]
[1625467161646,2.55666577,34312.0,34311.0,0.004]
[1625467162498,3.75274882,34312.0,34311.0,0.004]
[1625467163050,4.47447514,34312.0,34311.0,0.004]
[1625467164255,4.47247514,34312.0,34311.0,0.004]
[1625467165254,3.27639209,34312.0,34311.0,0.004]
[1625467167262,3.27639209,34312.0,34310.0,0.002]
[1625467167263,2.2511698,34312.0,34310.0,0.002]
[1625467167712,0.51369855,34311.0,34310.0,0.002]
[1625467167811,0.63169855,34311.0,34310.0,0.002]
[1625467168215,0.118,34311.0,34310.0,0.002]
[1625467169165,0.118,34311.0,34310.0,0.24257544]
[1625467169466,0.059,34311.0,34310.0,0.24257544]
[1625467169565,1.10011345,34315.0,34310.0,0.24257544]
[1625467169667,1.10011345,34315.0,34310.0,0.56936544]
[1625467169766,1.10011345,34315.0,34310.0,0.57381231]
[1625467169866,1.15911345,34315.0,34310.0,0.57381231]
[1625467169966,1.10011345,34315.0,34310.0,0.57381231]
[1625467170070,1.15911345,34315.0,34311.0,0.00444676]
[1625467170165,1.21811345,34315.0,34311.0,0.00444676]
[1625467170368,1.15911345,34315.0,34311.0,0.00444676]
[1625467170567,1.15911345,34315.0,34314.0,0.17055616]
[1625467170568,0.9878,34315.0,34314.0,0.17055616]
[1625467170667,0.9288,34315.0,34314.0,0.17055616]
[1625467170967,0.9878,34315.0,34314.0,0.17055616]
[1625467171167,0.9878,34315.0,34314.0,0.4111316]
[1625467171517,1.0468,34315.0,34314.0,0.4111316]
[1625467171618,0.9878,34315.0,34314.0,0.4111316]
[1625467171870,0.9878,34315.0,34314.0,0.41557822]
[1625467172220,0.9878,34315.0,34314.0,0.4111316]
[1625467173272,1.0468,34315.0,34314.0,0.4111316]
[1625467174480,0.9878,34315.0,34314.0,0.4111316]
[1625467175173,1.0468,34315.0,34314.0,0.4111316]
[1625467175374,0.9878,34315.0,34314.0,0.4111316]
[1625467176427,0.9878,34315.0,34314.0,0.41558036]
[1625467176729,0.9878,34315.0,34314.0,0.75819148]
[1625467178679,0.9878,34315.0,34314.0,0.75374272]
[1625467178881,0.9878,34315.0,34314.0,0.75819147]
[1625467179182,0.9878,34315.0,34314.0,0.75374272]
[1625467181996,0.9878,34315.0,34314.0,5.76694272]
[1625467182544,0.9878,34315.0,34314.0,0.75374272]
[1625467183446,0.9878,34315.0,34314.0,1.77868303]
[1625467183746,0.9878,34315.0,34314.0,1.78313141]
[1625467184546,0.9878,34315.0,34314.0,1.77868303]
[1625467186100,1.0468,34315.0,34314.0,1.77868303]
[1625467187354,0.9878,34315.0,34314.0,1.77868303]
[1625467187954,0.9878,34315.0,34314.0,2.97578423]
[1625467188406,1.0468,34315.0,34314.0,2.97578423]
[1625467188857,0.9878,34315.0,34314.0,2.97578423]
[1625467189658,0.9878,34315.0,34314.0,1.77868303]
[1625467189759,1.31007,34315.0,34314.0,1.77868303]
[1625467189959,1.36907,34315.0,34314.0,1.77868303]
[1625467191565,4.88247,34315.0,34314.0,1.77868303]
[1625467191665,1.36907,34315.0,34314.0,1.77868303]
[1625467192214,1.54079624,34315.0,34314.0,0.75374272]
[1625467192921,1.36907,34315.0,34314.0,0.75374272]
[1625467193021,1.0468,34315.0,34314.0,0.75374272]
[1625467193122,1.0468,34315.0,34314.0,0.75819312]
[1625467193423,1.0468,34315.0,34314.0,1.78400706]
[1625467193925,1.0468,34315.0,34314.0,1.77955666]
[1625467194726,1.0468,34315.0,34314.0,1.78400724]
[1625467195186,0.9878,34315.0,34314.0,1.78400724]
[1625467195280,0.9878,34315.0,34314.0,4.34703092]
[1625467195780,0.9878,34315.0,34314.0,8.81323092]
[1625467196082,0.9878,34315.0,34314.0,4.34703092]
[1625467197484,0.9878,34315.0,34314.0,5.88711421]
[1625467202347,0.9878,34315.0,34314.0,5.94611421]
[1625467205504,0.9878,34315.0,34314.0,9.78771421]
[1625467208212,0.9878,34315.0,34314.0,9.72871421]
[1625467208308,0.9878,34315.0,34314.0,5.94611421]
[1625467208410,0.9878,34315.0,34314.0,5.88711421]
[1625467208808,0.9878,34315.0,34314.0,5.94611421]
[1625467210311,0.9878,34315.0,34314.0,5.88711421]
[1625467210410,1.31053,34315.0,34314.0,5.88711421]
[1625467211262,1.31053,34315.0,34314.0,5.94611421]
[1625467211760,0.9878,34315.0,34314.0,5.94611421]
[1625467215066,0.9878,34315.0,34314.0,5.88711421]
[1625467215368,0.9878,34315.0,34314.0,5.94611421]
[1625467218124,0.9878,34315.0,34314.0,9.97701421]
[1625467218225,0.9878,34315.0,34314.0,5.94611421]
[1625467220984,0.9878,34315.0,34314.0,10.51311421]
[1625467221081,0.9878,34315.0,34314.0,5.94611421]
[1625467221882,0.9878,34315.0,34314.0,5.88711421]
[1625467224336,0.9878,34315.0,34314.0,5.88266363]
[1625467224536,0.9878,34315.0,34314.0,6.56676076]
[1625467224636,0.9878,34315.0,34314.0,6.5712098]
[1625467226290,1.0468,34315.0,34314.0,6.5712098]
[1625467226542,1.0468,34315.0,34314.0,6.33063436]
[1625467226645,1.0468,34315.0,34314.0,4.79055107]
[1625467227045,1.06109999,34315.0,34314.0,4.79055107]
[1625467227145,3.29967144,34315.0,34314.0,3.42360511]
[1625467227292,3.29967144,34315.0,34314.0,1.42290511]
[1625467227643,3.29967144,34315.0,34314.0,5.11e-06]
[1625467227742,3.29967144,34315.0,34311.0,1.37772779]
[1625467227743,4.67718681,34315.0,34311.0,1.37772779]
[1625467227842,4.91776225,34315.0,34311.0,1.37772779]
[1625467228193,0.01431345,34314.0,34312.0,0.00444556]
[1625467228293,1.37756146,34313.0,34312.0,0.00444556]
[1625467228494,1.49556146,34313.0,34312.0,0.00444556]
[1625467228694,1.49556146,34313.0,34311.0,0.004]
[1625467228893,0.118,34313.0,34311.0,0.004]
[1625467229395,1.49559717,34313.0,34311.0,0.004]
[1625467229846,0.24057544,34312.0,34311.0,0.004]
[1625467229944,0.35857544,34312.0,34311.0,0.004]
[1625467230296,0.35657544,34312.0,34311.0,0.004]
[1625467232254,0.35657544,34312.0,34307.0,0.008]
[1625467232558,0.35657544,34312.0,34308.0,0.87427188]
[1625467232758,0.0864,34311.0,34308.0,0.87427188]
[1625467232858,0.2044,34311.0,34308.0,0.87427188]
[1625467233058,4.9988,34309.0,34308.0,0.87427188]
[1625467233158,5.4537,34309.0,34308.0,0.87427188]
[1625467233258,5.4537,34309.0,34307.0,0.008]
[1625467233259,5.4537,34309.0,34305.0,0.01]
[1625467233356,5.4497,34309.0,34307.0,0.006]
[1625467233860,0.48115088,34308.0,34307.0,0.006]
[1625467233961,0.59915088,34308.0,34307.0,0.006]
[1625467234161,0.59915088,34308.0,34300.0,1.54855597]
[1625467234263,0.59915088,34308.0,34300.0,1.04845597]
[1625467234663,0.59915088,34308.0,34304.0,0.17200673]
[1625467235218,0.59915088,34308.0,34305.0,0.17200162]
[1625467235815,0.24057544,34306.0,34305.0,0.17200162]
[1625467235916,0.35857544,34306.0,34305.0,0.17200162]
[1625467236115,0.35857544,34306.0,34291.0,1.96057702]
[1625467236465,0.35857544,34306.0,34292.0,0.00444981]
[1625467236565,0.35857544,34306.0,34304.0,0.17186105]
[1625467236966,0.35857544,34306.0,34305.0,0.17185865]
[1625467238067,0.35857544,34306.0,34304.0,0.17186282]
[1625467238467,0.35857544,34306.0,34303.0,0.17175823]
[1625467239817,0.24057544,34304.0,34291.0,0.24057544]
[1625467239917,0.29957544,34304.0,34291.0,0.24057544]
[1625467240017,0.35857544,34304.0,34291.0,0.24057544]
[1625467240321,0.17162319,34302.0,34291.0,0.24057544]
[1625467240419,0.28962319,34302.0,34291.0,0.24057544]
[1625467241420,0.118,34302.0,34291.0,0.24057544]
[1625467241822,0.118,34302.0,34295.0,0.24057544]
[1625467241924,0.24057544,34296.0,34295.0,0.24057544]
[1625467242473,0.29957544,34296.0,34295.0,0.24057544]
[1625467243176,0.24057544,34296.0,34295.0,0.24057544]
[1625467243880,0.48115088,34296.0,34295.0,0.24057544]
[1625467244833,0.54015088,34296.0,34295.0,0.24057544]
[1625467246984,0.54015088,34296.0,34295.0,0.2451003]
[1625467247285,0.54015088,34296.0,34295.0,1.78397927]
[1625467247786,0.54015088,34296.0,34295.0,2.81253874]
[1625467248636,0.54015088,34296.0,34295.0,2.81706371]
[1625467253610,0.48115088,34296.0,34295.0,2.81706371]
[1625467253809,0.54015088,34296.0,34295.0,2.81706371]
[1625467254563,0.059,34296.0,34295.0,2.81706371]
[1625467254673,0.059,34296.0,34295.0,2.90326371]
[1625467254764,0.059,34296.0,34295.0,2.81706371]
[1625467254962,0.004,34298.0,34295.0,2.81706371]
[1625467255069,0.004,34298.0,34295.0,2.87606371]
[1625467255266,0.004,34298.0,34295.0,4.41806853]
[1625467255365,0.004,34298.0,34296.0,0.004481]
[1625467255564,0.004,34298.0,34296.0,0.063481]
[1625467255864,0.006,34300.0,34297.0,4.12674347]
[1625467255966,0.006,34300.0,34299.0,0.48115088]
[1625467256066,0.006,34300.0,34299.0,0.59915088]
[1625467256415,0.006,34300.0,34299.0,0.60363127]
[1625467256616,0.006,34300.0,34299.0,4.71486137]
[1625467256716,0.006,34300.0,34299.0,4.65586137]
[1625467257216,0.006,34300.0,34299.0,4.65186137]
[1625467257417,0.065,34300.0,34299.0,4.59286137]
[1625467257769,0.065,34300.0,34299.0,5.62095929]
[1625467257869,0.065,34300.0,34299.0,5.67995929]
[1625467257969,0.24657544,34300.0,34299.0,5.67995929]
[1625467258371,0.24657544,34300.0,34299.0,5.62095929]
[1625467258621,0.24657544,34300.0,34299.0,4.079248]
[1625467258820,0.30557544,34300.0,34299.0,4.079248]
[1625467259120,0.36457544,34300.0,34299.0,4.079248]
[1625467259222,0.30557544,34300.0,34299.0,4.079248]
[1625467259823,0.36457544,34300.0,34299.0,4.079248]
[1625467260324,0.35857544,34300.0,34299.0,4.075248]
[1625467261327,0.67093544,34300.0,34299.0,2.23168709]
[1625467261926,0.67093544,34300.0,34299.0,1.03257831]
[1625467262776,0.37156813,34300.0,34299.0,1.03257831]
[1625467263228,0.37156813,34300.0,34299.0,1.02857831]
[1625467263782,0.37156813,34300.0,34299.0,2.22825459]
[1625467263881,0.05920813,34300.0,34299.0,2.22825459]
[1625467263981,0.05920813,34300.0,34299.0,2.46883003]
[1625467264580,0.05920813,34300.0,34299.0,2.46834964]
[1625467264681,0.059,34300.0,34299.0,3.83944659]
[1625467264781,0.059,34300.0,34299.0,3.84392309]
[1625467265032,0.059,34300.0,34299.0,3.90292309]
[1625467265132,0.059,34300.0,34299.0,3.84392309]
[1625467269339,0.059,34300.0,34299.0,3.93142309]
[1625467269439,0.059,34300.0,34299.0,3.84392309]
[1625467269739,0.39791,34300.0,34299.0,3.84392309]
[1625467272144,0.45691,34300.0,34299.0,3.84392309]
[1625467273799,0.45691,34300.0,34299.0,3.93052309]
[1625467273900,0.45691,34300.0,34299.0,2.55942614]
[1625467274001,0.45691,34300.0,34299.0,2.47282614]
[1625467274100,0.69748544,34300.0,34299.0,2.47282614]
[1625467274454,0.69748544,34300.0,34299.0,1.27314986]
[1625467275000,0.69748544,34300.0,34299.0,2.47446031]
[1625467279014,0.69748544,34300.0,34299.0,2.56246031]
[1625467279215,0.69748544,34300.0,34299.0,2.47446031]
[1625467279316,0.69748544,34300.0,34299.0,1.27314986]
[1625467280018,0.69748544,34300.0,34299.0,2.47572333]
[1625467280820,0.69748544,34300.0,34299.0,2.23514789]
[1625467280918,0.69748544,34300.0,34299.0,3.61039818]
[1625467281120,0.69748544,34300.0,34299.0,1.60969818]
[1625467281370,1.20704121,34300.0,34298.0,1.2033926]
[1625467281920,0.16993625,34299.0,34296.0,1.37530583]
[1625467282019,0.56863899,34299.0,34295.0,1.61590272]
[1625467282121,0.24057544,34296.0,34295.0,1.61590272]
[1625467282221,0.29957544,34296.0,34295.0,1.61590272]
[1625467282322,0.35857544,34296.0,34295.0,1.61590272]
[1625467282426,0.35857544,34296.0,34295.0,1.62053827]
[1625467282523,0.35857544,34296.0,34295.0,1.72053827]
[1625467283276,0.35857544,34296.0,34295.0,0.34521099]
[1625467283477,0.35857544,34296.0,34295.0,0.28501099]
[1625467283676,5.20707544,34296.0,34295.0,0.28501099]
[1625467284280,5.20707544,34296.0,34295.0,0.62904059]
[1625467284731,6.56779094,34296.0,34295.0,0.28501099]
[1625467284935,6.56779094,34296.0,34295.0,0.09501099]
[1625467285080,6.56779094,34296.0,34295.0,0.26716133]
[1625467285784,6.56779094,34296.0,34295.0,0.09501099]
[1625467285881,0.059,34295.0,34294.0,0.37966361]
[1625467285981,0.118,34295.0,34294.0,0.37966361]
[1625467286082,0.118,34295.0,34294.0,0.32066361]
[1625467286183,0.29957544,34295.0,34294.0,0.32066361]
[1625467286434,1.65918191,34295.0,34290.0,0.006]
[1625467286532,0.5,34294.0,34290.0,0.006]
[1625467286688,0.618,34294.0,34287.0,1.37643329]
[1625467287082,0.618,34294.0,34287.0,1.29523329]
[1625467287285,1.52860159,34293.0,34283.0,10.0]
[1625467287382,0.5,34292.0,34283.0,10.0]
[1625467287484,0.618,34292.0,34283.0,10.0]
[1625467287785,0.618,34292.0,34284.0,0.00462593]
[1625467287994,1.52774449,34291.0,34285.0,0.6887293]
[1625467288186,0.72172632,34286.0,34285.0,0.6887293]
[1625467288287,1.05039632,34286.0,34285.0,0.6887293]
[1625467288587,1.72910498,34286.0,34285.0,0.69335525]
[1625467288787,1.72910498,34286.0,34285.0,0.6887293]
[1625467290094,1.05039632,34286.0,34285.0,0.6887293]
[1625467293850,0.83972632,34286.0,34285.0,0.6887293]
[1625467294703,0.83972632,34286.0,34284.0,0.68685212]
[1625467294805,1.14243632,34286.0,34284.0,0.68685212]
[1625467296009,1.14243632,34286.0,34285.0,0.0885]
[1625467296112,0.83972632,34286.0,34285.0,0.0885]
[1625467298114,0.83972632,34286.0,34284.0,0.68651426]
[1625467298214,1.14478632,34286.0,34284.0,0.68651426]
[1625467298616,1.14478632,34286.0,34284.0,0.61551426]
[1625467298716,1.14478632,34286.0,34284.0,0.57161426]
[1625467298921,1.14478632,34286.0,34283.0,10.0]
[1625467300276,0.24057544,34284.0,34283.0,10.0]
[1625467300373,0.35857544,34284.0,34283.0,10.0]
[1625467307739,0.35857544,34284.0,34283.0,10.00463701]
[1625467308040,0.35857544,34284.0,34283.0,10.0]
[1625467308191,0.35857544,34284.0,34283.0,9.9568]
[1625467309894,0.35857544,34284.0,34283.0,9.96143729]
[1625467310693,0.35857544,34284.0,34283.0,9.9568]
[1625467311196,0.35857544,34284.0,34283.0,9.9614372]
[1625467320222,0.63442544,34284.0,34283.0,9.9614372]
[1625467320426,0.63442544,34284.0,34283.0,9.9568]